[Event "*** Titled Tuesday Blitz"]
[Site "Chess.com"]
[Date "2020.04.21"]
[Round "5"]
[White "Tayson_7"]
[Black "Sychev_Klementy"]
[Result "1-0"]
[WhiteElo "2727"]
[BlackElo "2840"]
[TimeControl "180+1"]
[EndTime "10:57:09 PDT"]
[Termination "Tayson_7 won on time"]

1. e4 {[%clk 0:02:32.9]} 1... e5 {[%clk 0:02:58.3]} 2. Nf3 {[%clk 0:02:32.7]}
2... Nc6 {[%clk 0:02:58.5]} 3. Bb5 {[%clk 0:02:33.3]} 3... a6 {[%clk 0:02:58.4]}
4. Ba4 {[%clk 0:02:33.8]} 4... b5 {[%clk 0:02:58.1]} 5. Bb3 {[%clk 0:02:33.1]}
5... Na5 {[%clk 0:02:58.7]} 6. O-O {[%clk 0:02:30.1]} 6... d6 {[%clk 0:02:58.6]}
7. d4 {[%clk 0:02:21.5]} 7... exd4 {[%clk 0:02:59.5]} 8. Nxd4 {[%clk 0:02:17.6]}
8... Bb7 {[%clk 0:02:59.8]} 9. Re1 {[%clk 0:02:14.2]} 9... c5 {[%clk 0:02:58.3]}
10. Qh5 {[%clk 0:02:06.6]} 10... g6 {[%clk 0:02:49.2]} 11. Qf3 {[%clk
0:02:04.2]} 11... c4 {[%clk 0:02:47.3]} 12. Qg3 {[%clk 0:01:24.4]} 12... cxb3
{[%clk 0:02:05.1]} 13. e5 {[%clk 0:01:23.9]} 13... Bg7 {[%clk 0:01:31.4]} 14.
exd6+ {[%clk 0:01:05.4]} 14... Kf8 {[%clk 0:01:31.4]} 15. Nxb3 {[%clk 0:01:06]}
15... Nc4 {[%clk 0:01:12.9]} 16. Nc5 {[%clk 0:01:03.7]} 16... Bc6 {[%clk
0:01:13.1]} 17. d7 {[%clk 0:01:04.2]} 17... Nf6 {[%clk 0:00:50.4]} 18. Na3
{[%clk 0:00:32.3]} 18... Nxd7 {[%clk 0:00:43.3]} 19. Nxc4 {[%clk 0:00:26.2]}
19... Nxc5 {[%clk 0:00:43.2]} 20. Bg5 {[%clk 0:00:25.7]} 20... Bf6 {[%clk
0:00:15.3]} 21. Rad1 {[%clk 0:00:22]} 21... Bxg5 {[%clk 0:00:11.3]} 22. Rxd8+
{[%clk 0:00:21.1]} 22... Rxd8 {[%clk 0:00:08.5]} 23. Qxg5 {[%clk 0:00:20.2]}
23... Ne6 {[%clk 0:00:08.6]} 24. Qf6 {[%clk 0:00:18.2]} 24... bxc4 {[%clk
0:00:08.4]} 25. Qxh8+ {[%clk 0:00:17.6]} 25... Ke7 {[%clk 0:00:09]} 26. Qc3
{[%clk 0:00:17.2]} 26... Bd5 {[%clk 0:00:09]} 27. Qa3+ {[%clk 0:00:17.3]} 27...
Kf6 {[%clk 0:00:08.8]} 28. Qxa6 {[%clk 0:00:16.7]} 28... Kg7 {[%clk 0:00:08.3]}
29. Qa3 {[%clk 0:00:16.5]} 29... Kg8 {[%clk 0:00:07.8]} 30. Qc3 {[%clk
0:00:16.6]} 30... Ra8 {[%clk 0:00:06]} 31. a3 {[%clk 0:00:16.2]} 31... Rc8
{[%clk 0:00:05.8]} 32. Rd1 {[%clk 0:00:16.3]} 32... Be4 {[%clk 0:00:04.4]} 33.
f3 {[%clk 0:00:16.2]} 33... Ba8 {[%clk 0:00:03.2]} 34. a4 {[%clk 0:00:16.6]}
34... h5 {[%clk 0:00:03]} 35. a5 {[%clk 0:00:16.6]} 35... h4 {[%clk 0:00:03.4]}
36. a6 {[%clk 0:00:16.5]} 36... h3 {[%clk 0:00:03.1]} 37. a7 {[%clk 0:00:12.3]}
37... hxg2 {[%clk 0:00:03.3]} 38. Qf6 {[%clk 0:00:12.7]} 38... c3 {[%clk
0:00:01.4]} 39. Rd7 {[%clk 0:00:12.2]} 1-0

[Event "*** Titled Tuesday Blitz"]
[Site "Chess.com"]
[Date "2020.04.21"]
[Round "5"]
[White "Mikhail_Golubev"]
[Black "Spring199"]
[Result "1/2-1/2"]
[WhiteElo "2527"]
[BlackElo "2383"]
[TimeControl "180+1"]
[EndTime "10:57:11 PDT"]
[Termination "Game drawn by repetition"]

1. e4 {[%clk 0:03:00.9]} 1... e5 {[%clk 0:02:59.3]} 2. Nf3 {[%clk 0:03:00.5]}
2... Nc6 {[%clk 0:02:59]} 3. Nc3 {[%clk 0:03:00.6]} 3... Nf6 {[%clk 0:02:58.5]}
4. g3 {[%clk 0:03:00.9]} 4... d5 {[%clk 0:02:57.8]} 5. exd5 {[%clk 0:03:00.3]}
5... Nxd5 {[%clk 0:02:58.7]} 6. Bg2 {[%clk 0:03:00.6]} 6... Bc5 {[%clk
0:02:58.9]} 7. O-O {[%clk 0:03:00.2]} 7... O-O {[%clk 0:02:58.4]} 8. d3 {[%clk
0:02:59.7]} 8... Nxc3 {[%clk 0:02:55.2]} 9. bxc3 {[%clk 0:02:59.1]} 9... Bg4
{[%clk 0:02:55.4]} 10. h3 {[%clk 0:02:48.2]} 10... Bh5 {[%clk 0:02:54]} 11. g4
{[%clk 0:02:38.2]} 11... Bg6 {[%clk 0:02:53.2]} 12. Ng5 {[%clk 0:02:38.2]} 12...
Bb6 {[%clk 0:02:40.6]} 13. h4 {[%clk 0:02:30.9]} 13... h6 {[%clk 0:02:36.8]} 14.
h5 {[%clk 0:02:29.9]} 14... Bh7 {[%clk 0:02:20]} 15. Nxh7 {[%clk 0:02:26]} 15...
Kxh7 {[%clk 0:02:20.9]} 16. g5 {[%clk 0:02:26]} 16... hxg5 {[%clk 0:02:17.9]}
17. Qg4 {[%clk 0:02:24.5]} 17... f5 {[%clk 0:01:59.3]} 18. Qxg5 {[%clk
0:02:24.5]} 18... Qxg5 {[%clk 0:01:58.7]} 19. Bxg5 {[%clk 0:02:23.4]} 19... g6
{[%clk 0:01:57.2]} 20. Kh2 {[%clk 0:01:57.2]} 20... Rae8 {[%clk 0:01:34.4]} 21.
Bh4 {[%clk 0:00:47.1]} 21... Nd8 {[%clk 0:01:31.4]} 22. Bxd8 {[%clk 0:00:40.5]}
22... Rxd8 {[%clk 0:01:30.7]} 23. hxg6+ {[%clk 0:00:36.7]} 23... Kxg6 {[%clk
0:01:31.6]} 24. Bxb7 {[%clk 0:00:36.6]} 24... Rh8+ {[%clk 0:01:27.1]} 25. Kg2
{[%clk 0:00:36.3]} 25... Kf6 {[%clk 0:01:15.3]} 26. Kf3 {[%clk 0:00:36]} 26...
Rh3+ {[%clk 0:01:07.1]} 27. Ke2 {[%clk 0:00:34.8]} 27... Rh2 {[%clk 0:01:05.5]}
28. a4 {[%clk 0:00:31.4]} 28... a5 {[%clk 0:01:04.5]} 29. Rab1 {[%clk
0:00:30.1]} 29... Rg8 {[%clk 0:01:02.9]} 30. Rb5 {[%clk 0:00:20.8]} 30... Rg4
{[%clk 0:01:00.9]} 31. c4 {[%clk 0:00:20.2]} 31... Bd4 {[%clk 0:00:45.6]} 32. c3
{[%clk 0:00:19.2]} 32... Bxc3 {[%clk 0:00:43.4]} 33. Rc5 {[%clk 0:00:19.4]}
33... Bd4 {[%clk 0:00:42]} 34. Rc6+ {[%clk 0:00:19.2]} 34... Kg5 {[%clk
0:00:39.8]} 35. Rxc7 {[%clk 0:00:19.3]} 35... Rf4 {[%clk 0:00:39]} 36. Rg1+
{[%clk 0:00:18.1]} 36... Kf6 {[%clk 0:00:38]} 37. Rc6+ {[%clk 0:00:17]} 37...
Kf7 {[%clk 0:00:36.8]} 38. Rc7+ {[%clk 0:00:16.4]} 38... Kf6 {[%clk 0:00:36.5]}
39. Rc6+ {[%clk 0:00:14.1]} 39... Ke7 {[%clk 0:00:31.5]} 40. Rc7+ {[%clk
0:00:13.9]} 40... Kd8 {[%clk 0:00:25.9]} 41. Rc8+ {[%clk 0:00:13.6]} 41... Ke7
{[%clk 0:00:21.4]} 42. Rc7+ {[%clk 0:00:13]} 42... Kd8 {[%clk 0:00:21]} 43. Rc8+
{[%clk 0:00:12]} 43... Ke7 {[%clk 0:00:20.8]} 44. Rc7+ {[%clk 0:00:12.1]}
1/2-1/2

[Event "*** Titled Tuesday Blitz"]
[Site "Chess.com"]
[Date "2020.04.21"]
[Round "5"]
[White "11kevin"]
[Black "AnonymusDonkey"]
[Result "0-1"]
[WhiteElo "2539"]
[BlackElo "2408"]
[TimeControl "180+1"]
[EndTime "10:57:12 PDT"]
[Termination "AnonymusDonkey won by resignation"]

1. d4 {[%clk 0:03:00.9]} 1... Nf6 {[%clk 0:02:59]} 2. c4 {[%clk 0:03:00.3]} 2...
e6 {[%clk 0:02:56.4]} 3. Nc3 {[%clk 0:02:59.2]} 3... Bb4 {[%clk 0:02:56]} 4. e3
{[%clk 0:02:59.1]} 4... O-O {[%clk 0:02:55.5]} 5. Bd2 {[%clk 0:02:59.2]} 5... d5
{[%clk 0:02:54]} 6. Nf3 {[%clk 0:02:59.4]} 6... Re8 {[%clk 0:02:50]} 7. Rc1
{[%clk 0:02:57.8]} 7... Nc6 {[%clk 0:02:41.5]} 8. Qc2 {[%clk 0:02:52]} 8... e5
{[%clk 0:02:30.7]} 9. dxe5 {[%clk 0:02:50.7]} 9... Nxe5 {[%clk 0:02:29.4]} 10.
Nxe5 {[%clk 0:02:48.7]} 10... Rxe5 {[%clk 0:02:30.3]} 11. cxd5 {[%clk
0:02:47.6]} 11... Nxd5 {[%clk 0:02:26.2]} 12. Bd3 {[%clk 0:02:38.4]} 12... Nxc3
{[%clk 0:02:17.9]} 13. Bxh7+ {[%clk 0:02:29.3]} 13... Kh8 {[%clk 0:02:15.7]} 14.
Bxc3 {[%clk 0:02:25.1]} 14... Bxc3+ {[%clk 0:01:53.9]} 15. Qxc3 {[%clk
0:02:21.2]} 15... Qg5 {[%clk 0:01:46.9]} 16. g3 {[%clk 0:01:20.5]} 16... Re7
{[%clk 0:01:00.1]} 17. Bd3 {[%clk 0:01:13.6]} 17... Bh3 {[%clk 0:00:46.9]} 18.
Bf1 {[%clk 0:01:11.4]} 18... Rae8 {[%clk 0:00:25.8]} 19. Bxh3 {[%clk 0:00:47.2]}
19... Rxe3+ {[%clk 0:00:25.2]} 20. fxe3 {[%clk 0:00:46.8]} 20... Rxe3+ {[%clk
0:00:26.1]} 21. Kf2 {[%clk 0:00:43.7]} 21... Rxc3 {[%clk 0:00:23.4]} 22. Rxc3
{[%clk 0:00:41.9]} 22... Qd2+ {[%clk 0:00:19.4]} 23. Kf3 {[%clk 0:00:32.8]}
23... Qd5+ {[%clk 0:00:17]} 24. Kf2 {[%clk 0:00:31.2]} 24... Qxh1 {[%clk
0:00:16.1]} 25. Rxc7 {[%clk 0:00:29]} 25... Qxh2+ {[%clk 0:00:08.9]} 26. Bg2
{[%clk 0:00:28.9]} 26... Qh6 {[%clk 0:00:09]} 27. Rxb7 {[%clk 0:00:22.6]} 27...
Qd2+ {[%clk 0:00:09.2]} 28. Kg1 {[%clk 0:00:22.9]} 28... Qc1+ {[%clk 0:00:07.8]}
29. Kh2 {[%clk 0:00:22.8]} 29... Qh6+ {[%clk 0:00:08.3]} 30. Bh3 {[%clk
0:00:20.8]} 30... Qd2+ {[%clk 0:00:08.2]} 31. Bg2 {[%clk 0:00:21.3]} 31... Qh6+
{[%clk 0:00:08.2]} 32. Kg1 {[%clk 0:00:21.8]} 32... Qe3+ {[%clk 0:00:07.3]} 33.
Kf1 {[%clk 0:00:21.9]} 33... Qxg3 {[%clk 0:00:06.6]} 34. Rb3 {[%clk 0:00:19.9]}
34... Qf4+ {[%clk 0:00:06.2]} 35. Kg1 {[%clk 0:00:19.6]} 35... Qd4+ {[%clk
0:00:05.5]} 36. Kh1 {[%clk 0:00:20]} 36... g6 {[%clk 0:00:06]} 37. Rd3 {[%clk
0:00:18.8]} 37... Qxb2 {[%clk 0:00:05.5]} 38. Rc3 {[%clk 0:00:19.7]} 38... Qxc3
{[%clk 0:00:05.6]} 39. a4 {[%clk 0:00:19.2]} 39... Qc1+ {[%clk 0:00:05.7]} 40.
Kh2 {[%clk 0:00:19]} 40... Qf4+ {[%clk 0:00:06.2]} 41. Kg1 {[%clk 0:00:19.2]}
41... Qxa4 {[%clk 0:00:07.1]} 42. Kf1 {[%clk 0:00:19.5]} 42... Qb4 {[%clk
0:00:07.5]} 43. Kf2 {[%clk 0:00:19.8]} 43... Kg7 {[%clk 0:00:08.4]} 44. Kg3
{[%clk 0:00:20.3]} 44... a5 {[%clk 0:00:09.3]} 45. Kh2 {[%clk 0:00:20.8]} 45...
a4 {[%clk 0:00:10.2]} 46. Kg1 {[%clk 0:00:21.3]} 46... a3 {[%clk 0:00:11.1]} 0-1

[Event "*** Titled Tuesday Blitz"]
[Site "Chess.com"]
[Date "2020.04.21"]
[Round "5"]
[White "InfiniteAdaption"]
[Black "Ovsiannikov_Maxim"]
[Result "1-0"]
[WhiteElo "2482"]
[BlackElo "2223"]
[TimeControl "180+1"]
[EndTime "10:57:12 PDT"]
[Termination "InfiniteAdaption won by checkmate"]

1. g3 {[%clk 0:03:00.9]} 1... g6 {[%clk 0:02:58.9]} 2. h4 {[%clk 0:02:58.3]}
2... Bg7 {[%clk 0:02:59.8]} 3. Bh3 {[%clk 0:02:55]} 3... d6 {[%clk 0:02:58.6]}
4. d4 {[%clk 0:02:54]} 4... Nc6 {[%clk 0:02:57.9]} 5. c3 {[%clk 0:02:51.6]} 5...
e5 {[%clk 0:02:57.5]} 6. e3 {[%clk 0:02:51.4]} 6... Nge7 {[%clk 0:02:54.8]} 7.
Nd2 {[%clk 0:02:50.7]} 7... h5 {[%clk 0:02:51.2]} 8. Kf1 {[%clk 0:02:50.6]} 8...
Be6 {[%clk 0:02:42.5]} 9. Bxe6 {[%clk 0:02:45]} 9... fxe6 {[%clk 0:02:43.4]} 10.
Kg2 {[%clk 0:02:45.2]} 10... Rf8 {[%clk 0:02:43.7]} 11. Nh3 {[%clk 0:02:42.5]}
11... Nf5 {[%clk 0:02:42.9]} 12. Nf3 {[%clk 0:02:36.8]} 12... exd4 {[%clk
0:02:42.6]} 13. cxd4 {[%clk 0:02:35]} 13... Qd7 {[%clk 0:02:42.7]} 14. Nf4
{[%clk 0:02:28.9]} 14... Nce7 {[%clk 0:02:37.8]} 15. Qb3 {[%clk 0:02:19.6]}
15... e5 {[%clk 0:02:26.1]} 16. dxe5 {[%clk 0:02:00.6]} 16... dxe5 {[%clk
0:02:22.4]} 17. Qxb7 {[%clk 0:01:46.2]} 17... Rd8 {[%clk 0:02:01.5]} 18. Nh3
{[%clk 0:01:30.2]} 18... e4 {[%clk 0:01:33]} 19. Nfg5 {[%clk 0:01:24.6]} 19...
Nxh4+ {[%clk 0:01:26.9]} 20. gxh4 {[%clk 0:01:07.6]} 20... Qg4+ {[%clk
0:01:27.1]} 21. Kh2 {[%clk 0:00:53.3]} 21... Be5+ {[%clk 0:01:26.8]} 22. Nf4
{[%clk 0:00:51]} 22... Bxf4+ {[%clk 0:01:24]} 23. exf4 {[%clk 0:00:50.1]} 23...
Qxh4+ {[%clk 0:01:19.5]} 24. Nh3 {[%clk 0:00:49.9]} 24... e3 {[%clk 0:01:05.2]}
25. Bxe3 {[%clk 0:00:47.1]} 25... g5 {[%clk 0:01:00.1]} 26. Qb5+ {[%clk
0:00:43.2]} 26... c6 {[%clk 0:01:00]} 27. Qxg5 {[%clk 0:00:43.1]} 27... Qxg5
{[%clk 0:00:58]} 28. Nxg5 {[%clk 0:00:44]} 28... Nf5 {[%clk 0:00:57.2]} 29. Rae1
{[%clk 0:00:43.4]} 29... Kd7 {[%clk 0:00:54.1]} 30. Kg2 {[%clk 0:00:39.4]} 30...
h4 {[%clk 0:00:51.5]} 31. Kf3 {[%clk 0:00:35.2]} 31... Rde8 {[%clk 0:00:45]} 32.
Bxa7 {[%clk 0:00:32.5]} 32... Ra8 {[%clk 0:00:42.2]} 33. Bc5 {[%clk 0:00:29.7]}
33... Rfb8 {[%clk 0:00:38]} 34. Rd1+ {[%clk 0:00:26.4]} 34... Kc7 {[%clk
0:00:37.9]} 35. Kg4 {[%clk 0:00:24.5]} 35... Nh6+ {[%clk 0:00:36.5]} 36. Kh5
{[%clk 0:00:24.3]} 36... Nf5 {[%clk 0:00:36.8]} 37. Kg6 {[%clk 0:00:21.7]} 37...
Ra5 {[%clk 0:00:32.4]} 38. Ne6+ {[%clk 0:00:21.2]} 38... Kb7 {[%clk 0:00:31.4]}
39. Kxf5 {[%clk 0:00:21.5]} 39... Rxa2 {[%clk 0:00:28.3]} 40. Rxh4 {[%clk
0:00:21]} 40... Ka6 {[%clk 0:00:27.9]} 41. Rh7 {[%clk 0:00:20.3]} 41... Rb7
{[%clk 0:00:26.4]} 42. Rxb7 {[%clk 0:00:19.6]} 42... Kxb7 {[%clk 0:00:27.3]} 43.
b4 {[%clk 0:00:19.8]} 43... Rxf2 {[%clk 0:00:26.4]} 44. Kf6 {[%clk 0:00:19.3]}
44... Rd2 {[%clk 0:00:27]} 45. Rxd2 {[%clk 0:00:18.7]} 45... Ka6 {[%clk
0:00:26]} 46. Nd4 {[%clk 0:00:16.3]} 46... Kb7 {[%clk 0:00:25.5]} 47. Ke7 {[%clk
0:00:16.8]} 47... Ka6 {[%clk 0:00:26.4]} 48. Ra2+ {[%clk 0:00:14.8]} 48... Kb7
{[%clk 0:00:25.9]} 49. Kd7 {[%clk 0:00:15.2]} 49... Kb8 {[%clk 0:00:24.2]} 50.
Nxc6+ {[%clk 0:00:14.4]} 50... Kb7 {[%clk 0:00:24.4]} 51. Ra7# {[%clk
0:00:14.1]} 1-0

[Event "*** Titled Tuesday Blitz"]
[Site "Chess.com"]
[Date "2020.04.21"]
[Round "5"]
[White "zajka-molotok"]
[Black "Ekka83"]
[Result "1-0"]
[WhiteElo "2407"]
[BlackElo "2214"]
[TimeControl "180+1"]
[EndTime "10:57:12 PDT"]
[Termination "zajka-molotok won on time"]

1. d4 {[%clk 0:02:57.6]} 1... Nf6 {[%clk 0:02:58.7]} 2. c4 {[%clk 0:02:57.5]}
2... g6 {[%clk 0:02:56.3]} 3. Nc3 {[%clk 0:02:57.4]} 3... Bg7 {[%clk 0:02:56.2]}
4. e4 {[%clk 0:02:57.4]} 4... O-O {[%clk 0:02:56.6]} 5. Be2 {[%clk 0:02:57.8]}
5... d6 {[%clk 0:02:56.6]} 6. Be3 {[%clk 0:02:57.6]} 6... e5 {[%clk 0:02:56]} 7.
d5 {[%clk 0:02:53.8]} 7... a5 {[%clk 0:02:55.5]} 8. g4 {[%clk 0:02:53.3]} 8...
Na6 {[%clk 0:02:51.3]} 9. h4 {[%clk 0:02:50.9]} 9... Ne8 {[%clk 0:02:45.2]} 10.
h5 {[%clk 0:02:46.1]} 10... f5 {[%clk 0:02:45.1]} 11. h6 {[%clk 0:02:45.3]}
11... Bf6 {[%clk 0:02:35.7]} 12. gxf5 {[%clk 0:02:43.8]} 12... gxf5 {[%clk
0:02:35.6]} 13. exf5 {[%clk 0:02:40.1]} 13... Bxf5 {[%clk 0:02:35.2]} 14. Nf3
{[%clk 0:02:26.2]} 14... Kh8 {[%clk 0:02:34]} 15. Qd2 {[%clk 0:02:15.5]} 15...
Rg8 {[%clk 0:02:30.6]} 16. O-O-O {[%clk 0:02:11.4]} 16... e4 {[%clk 0:01:50.4]}
17. Nd4 {[%clk 0:02:08.5]} 17... Qd7 {[%clk 0:01:39.9]} 18. Rdg1 {[%clk
0:02:03]} 18... Be5 {[%clk 0:01:21]} 19. Rxg8+ {[%clk 0:01:51.4]} 19... Kxg8
{[%clk 0:01:21.9]} 20. Rg1+ {[%clk 0:01:50.8]} 20... Kh8 {[%clk 0:01:21]} 21.
Nxf5 {[%clk 0:01:28.2]} 21... Qxf5 {[%clk 0:01:20.7]} 22. Rg4 {[%clk 0:01:28.3]}
22... Nf6 {[%clk 0:01:17.4]} 23. Rg5 {[%clk 0:01:27.8]} 23... Qh3 {[%clk
0:01:13.3]} 24. a3 {[%clk 0:01:17.6]} 24... Nc5 {[%clk 0:01:05.9]} 25. Bxc5
{[%clk 0:01:14.5]} 25... Bxc3 {[%clk 0:00:45.8]} 26. bxc3 {[%clk 0:01:12.3]}
26... dxc5 {[%clk 0:00:44.2]} 27. Qf4 {[%clk 0:01:11.9]} 27... Qxh6 {[%clk
0:00:41.8]} 28. Kc2 {[%clk 0:00:55.3]} 28... Rf8 {[%clk 0:00:31]} 29. Qe5 {[%clk
0:00:49.5]} 29... c6 {[%clk 0:00:19.9]} 30. d6 {[%clk 0:00:48.3]} 30... Re8
{[%clk 0:00:19]} 31. Qf5 {[%clk 0:00:45.2]} 31... Rf8 {[%clk 0:00:19]} 32. Qe5
{[%clk 0:00:43.3]} 32... Re8 {[%clk 0:00:17.9]} 33. Qg3 {[%clk 0:00:41.8]} 33...
Rf8 {[%clk 0:00:16.9]} 34. Rf5 {[%clk 0:00:39.9]} 34... Qg6 {[%clk 0:00:16.7]}
35. Qf4 {[%clk 0:00:38.7]} 35... Kg7 {[%clk 0:00:16.7]} 36. Qe5 {[%clk
0:00:37.7]} 36... Re8 {[%clk 0:00:16.2]} 37. Qf4 {[%clk 0:00:36.5]} 37... h6
{[%clk 0:00:16.5]} 38. d7 {[%clk 0:00:27.5]} 38... Nxd7 {[%clk 0:00:16.2]} 39.
Bh5 {[%clk 0:00:27.3]} 39... Qg2 {[%clk 0:00:07.3]} 40. Bxe8 {[%clk 0:00:26.3]}
40... e3 {[%clk 0:00:05]} 41. Rf7+ {[%clk 0:00:25.4]} 41... Kg8 {[%clk
0:00:04.9]} 42. Qxe3 {[%clk 0:00:22]} 42... Qg6+ {[%clk 0:00:04.5]} 43. Kb2
{[%clk 0:00:21.7]} 1-0

[Event "*** Titled Tuesday Blitz"]
[Site "Chess.com"]
[Date "2020.04.21"]
[Round "5"]
[White "Leo_C"]
[Black "grandcoach"]
[Result "1-0"]
[WhiteElo "2288"]
[BlackElo "1944"]
[TimeControl "180+1"]
[EndTime "10:57:12 PDT"]
[Termination "Leo_C won on time"]

1. d4 {[%clk 0:03:00.9]} 1... Nf6 {[%clk 0:02:58.9]} 2. c4 {[%clk 0:02:59.8]}
2... e6 {[%clk 0:02:58.8]} 3. Nc3 {[%clk 0:02:59.4]} 3... d5 {[%clk 0:02:57.9]}
4. Bg5 {[%clk 0:02:57.1]} 4... Be7 {[%clk 0:02:57.4]} 5. e3 {[%clk 0:02:57.2]}
5... h6 {[%clk 0:02:57.8]} 6. Bh4 {[%clk 0:02:56.7]} 6... O-O {[%clk 0:02:58.4]}
7. Nf3 {[%clk 0:02:56.5]} 7... Ne4 {[%clk 0:02:58.8]} 8. Bxe7 {[%clk 0:02:54.7]}
8... Qxe7 {[%clk 0:02:59.7]} 9. Bd3 {[%clk 0:02:52.5]} 9... Nxc3 {[%clk
0:02:46]} 10. bxc3 {[%clk 0:02:53.4]} 10... c6 {[%clk 0:02:46.4]} 11. O-O {[%clk
0:02:50.7]} 11... b6 {[%clk 0:02:44.6]} 12. e4 {[%clk 0:02:48.1]} 12... dxe4
{[%clk 0:02:35.1]} 13. Bxe4 {[%clk 0:02:47.8]} 13... Bb7 {[%clk 0:02:35.6]} 14.
Bc2 {[%clk 0:02:45.5]} 14... Nd7 {[%clk 0:02:32.2]} 15. Qd3 {[%clk 0:02:42.2]}
15... g6 {[%clk 0:02:27.5]} 16. Rfe1 {[%clk 0:02:39.3]} 16... Rfd8 {[%clk
0:02:18]} 17. Rad1 {[%clk 0:02:38]} 17... Qf6 {[%clk 0:02:02.6]} 18. Qe3 {[%clk
0:02:22.1]} 18... Kg7 {[%clk 0:01:45.2]} 19. h3 {[%clk 0:02:17.3]} 19... Rac8
{[%clk 0:01:41.7]} 20. Be4 {[%clk 0:02:12.7]} 20... Rc7 {[%clk 0:01:36.2]} 21.
Qc1 {[%clk 0:02:03.5]} 21... c5 {[%clk 0:01:32]} 22. Bxb7 {[%clk 0:01:55.2]}
22... Rxb7 {[%clk 0:01:31.5]} 23. d5 {[%clk 0:01:55.7]} 23... exd5 {[%clk
0:01:18.4]} 24. cxd5 {[%clk 0:01:55.3]} 24... c4 {[%clk 0:01:18.7]} 25. Rd4
{[%clk 0:01:45.7]} 25... Nc5 {[%clk 0:01:16.6]} 26. Ne5 {[%clk 0:01:30.3]} 26...
Re7 {[%clk 0:01:04.2]} 27. Nc6 {[%clk 0:01:17.8]} 27... Rxe1+ {[%clk 0:01:00.7]}
28. Qxe1 {[%clk 0:01:18.7]} 28... Rd7 {[%clk 0:00:48.7]} 29. Qe2 {[%clk
0:01:07]} 29... b5 {[%clk 0:00:40.8]} 30. g3 {[%clk 0:00:54.8]} 30... Qf5 {[%clk
0:00:36]} 31. Qd2 {[%clk 0:00:14.6]} 31... Qxh3 {[%clk 0:00:26]} 32. Rh4 {[%clk
0:00:13.5]} 32... Qxh4 {[%clk 0:00:09.7]} 33. gxh4 {[%clk 0:00:13.6]} 33... Nd3
{[%clk 0:00:07.9]} 34. Kg2 {[%clk 0:00:10.4]} 34... Rxd5 {[%clk 0:00:07.5]} 35.
Nd4 {[%clk 0:00:09.7]} 35... b4 {[%clk 0:00:02.7]} 36. Qc2 {[%clk 0:00:04.2]}
1-0

[Event "*** Titled Tuesday Blitz"]
[Site "Chess.com"]
[Date "2020.04.21"]
[Round "5"]
[White "Alexander_Moskalenko"]
[Black "Obito24"]
[Result "1-0"]
[WhiteElo "2898"]
[BlackElo "2644"]
[TimeControl "180+1"]
[EndTime "10:57:14 PDT"]
[Termination "Alexander_Moskalenko won on time"]

1. e4 {[%clk 0:02:52.2]} 1... c5 {[%clk 0:02:59.3]} 2. Nf3 {[%clk 0:02:49.3]}
2... d6 {[%clk 0:02:59.4]} 3. d4 {[%clk 0:02:49.4]} 3... cxd4 {[%clk 0:02:59.8]}
4. Nxd4 {[%clk 0:02:50.3]} 4... Nf6 {[%clk 0:03:00.2]} 5. Nc3 {[%clk 0:02:50.8]}
5... a6 {[%clk 0:03:00.7]} 6. Bc4 {[%clk 0:02:49.1]} 6... e6 {[%clk 0:03:00.4]}
7. Bb3 {[%clk 0:02:49.6]} 7... Be7 {[%clk 0:03:00.1]} 8. g4 {[%clk 0:02:40.3]}
8... h6 {[%clk 0:02:59.6]} 9. h4 {[%clk 0:02:38.2]} 9... Nc6 {[%clk 0:02:51.5]}
10. Rg1 {[%clk 0:02:36]} 10... Nh7 {[%clk 0:02:33.7]} 11. Nf3 {[%clk 0:02:22.7]}
11... Ne5 {[%clk 0:02:02.4]} 12. Nxe5 {[%clk 0:02:18.2]} 12... dxe5 {[%clk
0:02:03.3]} 13. Qxd8+ {[%clk 0:02:18.7]} 13... Bxd8 {[%clk 0:02:04.2]} 14. g5
{[%clk 0:02:19.6]} 14... hxg5 {[%clk 0:02:03.5]} 15. hxg5 {[%clk 0:02:19.2]}
15... Nxg5 {[%clk 0:01:42.4]} 16. Ke2 {[%clk 0:01:53.9]} 16... Rh5 {[%clk
0:01:10]} 17. Be3 {[%clk 0:01:35.3]} 17... g6 {[%clk 0:01:09.5]} 18. Rh1 {[%clk
0:01:28.7]} 18... Nh3 {[%clk 0:00:53.4]} 19. Na4 {[%clk 0:01:02.3]} 19... Bd7
{[%clk 0:00:50.4]} 20. Nb6 {[%clk 0:00:58.3]} 20... Bxb6 {[%clk 0:00:49.7]} 21.
Bxb6 {[%clk 0:00:59.2]} 21... f5 {[%clk 0:00:32.9]} 22. Rad1 {[%clk 0:00:50.6]}
22... Rc8 {[%clk 0:00:17.9]} 23. Ke3 {[%clk 0:00:40]} 23... Ke7 {[%clk
0:00:17.3]} 24. a4 {[%clk 0:00:36.7]} 24... g5 {[%clk 0:00:16.9]} 25. exf5
{[%clk 0:00:26.5]} 25... exf5 {[%clk 0:00:17.8]} 26. Rd5 {[%clk 0:00:27]} 26...
f4+ {[%clk 0:00:13.6]} 27. Ke2 {[%clk 0:00:26.7]} 27... g4 {[%clk 0:00:11.3]}
28. Rhd1 {[%clk 0:00:24]} 28... Be6 {[%clk 0:00:08.9]} 29. Rc5 {[%clk
0:00:21.6]} 29... Rxc5 {[%clk 0:00:08.2]} 30. Bxc5+ {[%clk 0:00:22.5]} 30... Kf6
{[%clk 0:00:04.1]} 31. Rd6 {[%clk 0:00:22.6]} 31... Ng5 {[%clk 0:00:04.8]} 32.
Bb6 {[%clk 0:00:22.8]} 32... Kf5 {[%clk 0:00:04.5]} 33. c4 {[%clk 0:00:20.1]}
33... Ne4 {[%clk 0:00:04]} 34. Bc2 {[%clk 0:00:20.4]} 34... f3+ {[%clk
0:00:03.1]} 35. Ke3 {[%clk 0:00:20.4]} 35... g3 {[%clk 0:00:02.1]} 36. Bxe4+
{[%clk 0:00:20.2]} 36... Kg4 {[%clk 0:00:02.3]} 37. Bxf3+ {[%clk 0:00:20.3]}
37... Kf5 {[%clk 0:00:01.4]} 38. Bxh5 {[%clk 0:00:19]} 1-0